bitfinex-derivatives/quotes_BTCF0:USTF0_20250129
["timestamp","ask_amount","ask_price","bid_price","bid_amount"]
[1738136629001,0.00114613,102610.0,102600.0,1.60033627]
[1738136629203,0.03184613,102610.0,102600.0,1.60033627]
[1738136631305,0.03184613,102610.0,102600.0,0.87873627]
[1738136631496,0.03184613,102610.0,102600.0,1.60033627]
[1738136633697,0.03184613,102610.0,102600.0,1.67885627]
[1738136636006,0.03184613,102610.0,102600.0,1.64076712]
[1738136636307,0.03184613,102610.0,102600.0,0.91916712]
[1738136636504,0.03184613,102610.0,102600.0,1.27996712]
[1738136637700,0.11906379,102610.0,102600.0,1.27996712]
[1738136641709,0.11906379,102610.0,102600.0,1.51379771]
[1738136643809,0.11906379,102610.0,102600.0,1.43527771]
[1738136644009,0.11906379,102610.0,102600.0,1.51379771]
[1738136645611,0.11906379,102610.0,102600.0,1.15299771]
[1738136645812,0.11906379,102610.0,102600.0,1.51379771]
[1738136647614,0.11906379,102610.0,102600.0,1.15299771]
[1738136647812,0.11906379,102610.0,102600.0,1.51379771]
[1738136662820,0.11906379,102610.0,102600.0,1.43527771]
[1738136663518,0.11906379,102610.0,102600.0,1.07447771]
[1738136664024,0.23545287,102610.0,102600.0,1.07447771]
[1738136668024,0.23545287,102610.0,102600.0,1.43527771]
[1738136668226,0.23545287,102610.0,102600.0,1.07447771]
[1738136670320,0.23545287,102610.0,102600.0,0.97867215]
[1738136670513,0.83913565,102610.0,102600.0,0.97867215]
[1738136670916,0.83913565,102610.0,102600.0,1.02657493]
[1738136674328,0.47833565,102610.0,102600.0,1.02657493]
[1738136674527,0.83913565,102610.0,102600.0,1.02657493]
[1738136674919,0.79123287,102610.0,102600.0,1.02657493]
[1738136676023,0.84950156,102610.0,102600.0,0.41826038]
[1738136676726,0.84950156,102610.0,102600.0,0.46616316]
[1738136677130,0.85948784,102610.0,102600.0,0.46616316]
[1738136677730,0.26302156,102610.0,102600.0,0.46616316]
[1738136679725,0.03124613,102610.0,102600.0,0.52463515]
[1738136681840,0.00114613,102610.0,102600.0,0.52463515]
[1738136684038,0.20481993,102610.0,102600.0,0.52463515]
[1738136688846,0.20481993,102610.0,102600.0,0.88543515]
[1738136689235,0.20481993,102610.0,102600.0,1.10864333]
[1738136689439,0.20481993,102610.0,102600.0,1.06074055]
[1738136691645,0.20481993,102610.0,102600.0,0.69994055]
[1738136691848,0.20481993,102610.0,102600.0,1.06074055]
[1738136693651,0.00114613,102610.0,102600.0,1.20242185]
[1738136695752,0.00114613,102610.0,102600.0,0.84162185]
[1738136695952,0.00114613,102610.0,102600.0,1.20242185]
[1738136696451,0.00114613,102610.0,102600.0,0.84162185]
[1738136696748,0.00114613,102610.0,102600.0,1.20242185]
[1738136697147,0.00114613,102610.0,102600.0,1.34778576]
[1738136699146,0.00114613,102610.0,102600.0,1.29988298]
[1738136701041,0.00114613,102610.0,102600.0,1.53349802]
[1738136704148,0.00114613,102610.0,102600.0,1.43603689]
[1738136714165,0.00114613,102610.0,102600.0,1.47414753]
[1738136715868,0.00114613,102610.0,102600.0,1.11334753]
[1738136716166,0.00114613,102610.0,102600.0,1.47414753]
[1738136716465,0.00114613,102610.0,102600.0,1.24053249]
[1738136720471,0.00114613,102610.0,102600.0,1.59137128]
[1738136720472,0.08843085,102610.0,102600.0,1.59137128]
[1738136724773,0.08843085,102610.0,102600.0,1.23057128]
[1738136725070,0.08843085,102610.0,102600.0,1.59137128]
[1738136727173,0.08843085,102610.0,102600.0,1.73673519]
[1738136728074,0.02814404,102620.0,102600.0,1.54173619]
[1738136728275,0.17453328,102630.0,102620.0,0.194961]
[1738136728478,0.17453328,102630.0,102620.0,0.69946934]
[1738136729377,0.17453328,102630.0,102620.0,0.83504837]
[1738136730076,0.18153328,102630.0,102620.0,0.83604837]
[1738136731570,0.18453328,102630.0,102620.0,0.83604837]
[1738136731969,0.07476354,102640.0,102630.0,0.194942]
[1738136732175,0.04296354,102640.0,102630.0,0.73275034]
[1738136732372,0.04296354,102640.0,102630.0,0.74664756]
[1738136732570,0.2705182,102660.0,102650.0,0.194904]
[1738136732873,0.0443027,102670.0,102650.0,0.81740556]
[1738136733177,0.0443027,102670.0,102660.0,0.65149056]
[1738136733378,0.00146153,102670.0,102660.0,0.65149056]
[1738136735966,0.00246153,102670.0,102660.0,0.65149056]
[1738136736376,0.00246153,102670.0,102660.0,0.60358778]
[1738136737779,0.00246153,102670.0,102660.0,0.65149056]
[1738136738778,0.00246153,102670.0,102660.0,0.60358778]
[1738136739280,0.00246153,102670.0,102660.0,1.47053216]
[1738136739681,0.69419198,102690.0,102660.0,1.27564716]
[1738136739871,0.76079198,102690.0,102680.0,0.24274978]
[1738136740073,0.76079198,102690.0,102680.0,0.194847]
[1738136740383,0.54080278,102700.0,102690.0,0.194828]
[1738136740384,0.70351578,102700.0,102690.0,0.194828]
[1738136741585,1.11221856,102700.0,102680.0,0.194841]
[1738136741774,0.50400278,102690.0,102680.0,0.194841]
[1738136743283,0.50400278,102690.0,102680.0,0.197841]
[1738136744280,0.69883078,102690.0,102680.0,0.197841]
[1738136750876,0.69883078,102690.0,102680.0,0.24574378]
[1738136752082,0.650928,102690.0,102680.0,0.24574378]
[1738136753273,0.4561,102690.0,102680.0,0.24574378]
[1738136753476,0.0953,102690.0,102680.0,0.24574378]
[1738136753686,0.4561,102690.0,102680.0,0.24574378]
[1738136754085,0.0953,102690.0,102680.0,0.24574378]
[1738136754393,0.4561,102690.0,102680.0,0.24574378]
[1738136754973,0.50400278,102690.0,102680.0,0.24574378]
[1738136755184,0.50400278,102690.0,102680.0,0.197841]
[1738136755693,0.69883078,102690.0,102680.0,0.197841]
[1738136759383,0.33803078,102690.0,102680.0,0.197841]
[1738136759582,0.69883078,102690.0,102680.0,0.197841]
[1738136760683,0.69883078,102690.0,102680.0,0.003]
[1738136760886,0.69883078,102690.0,102670.0,0.04804891]
[1738136760887,0.194847,102680.0,102670.0,0.19500913]
[1738136761186,0.60354978,102680.0,102670.0,0.19500913]
[1738136761488,0.194866,102670.0,102660.0,0.3689152]
[1738136761677,0.69866878,102670.0,102660.0,0.3689152]
[1738136762181,0.69866878,102670.0,102660.0,0.42819825]
[1738136762986,0.69866878,102670.0,102650.0,0.59186307]
[1738136762987,0.80380278,102670.0,102650.0,0.59186307]
[1738136763293,0.194923,102640.0,102630.0,1.17889239]
[1738136763487,1.01232856,102640.0,102630.0,1.04117865]
[1738136763681,0.96442578,102640.0,102630.0,1.04117865]
[1738136764186,1.01232856,102640.0,102630.0,1.04117865]
[1738136764576,0.98949616,102640.0,102630.0,1.04117865]
[1738136764885,0.98949616,102640.0,102620.0,1.69168172]
[1738136764886,1.16754632,102640.0,102620.0,1.69168172]
[1738136765188,0.70168832,102630.0,102620.0,1.69168172]
[1738136766083,0.73418832,102630.0,102620.0,1.69168172]
[1738136766387,1.09988832,102630.0,102620.0,1.46729877]
[1738136766684,1.09988832,102630.0,102620.0,0.46677664]
[1738136766889,0.194961,102620.0,102610.0,0.00012088]
[1738136767091,0.62873416,102620.0,102610.0,0.00012088]
[1738136767994,0.63173416,102620.0,102610.0,0.00012088]
[1738136772283,0.64165817,102620.0,102610.0,0.00012088]
[1738136774990,0.19498,102610.0,102600.0,0.00014613]
[1738136775194,0.62875316,102610.0,102600.0,0.00014613]
[1738136777097,0.62883563,102610.0,102600.0,0.00014613]
[1738136777298,0.62887404,102610.0,102600.0,0.00014613]
[1738136777594,0.62875316,102610.0,102600.0,0.00014613]
[1738136777989,0.63475316,102610.0,102600.0,0.00014613]
[1738136778190,0.63484806,102610.0,102600.0,0.00014613]
[1738136778393,0.63684806,102610.0,102600.0,0.00014613]
[1738136780897,0.63684806,102610.0,102600.0,0.194999]
[1738136781998,0.5628749,102610.0,102600.0,0.194999]
[1738136782196,0.63584806,102610.0,102600.0,0.228199]
[1738136782596,0.63584806,102610.0,102600.0,0.22801069]
[1738136783099,0.3648949,102610.0,102600.0,0.22801069]
[1738136784691,0.43786806,102610.0,102600.0,0.22801069]
[1738136785199,0.3648949,102610.0,102600.0,0.21820919]
[1738136786503,0.0040949,102610.0,102600.0,0.57900919]
[1738136786697,0.0040949,102610.0,102600.0,0.29118235]
[1738136786995,0.0040949,102610.0,102600.0,0.21820919]
[1738136787188,0.0030949,102610.0,102600.0,0.65198235]
[1738136787392,0.0030949,102610.0,102600.0,0.29118235]
[1738136787699,9.49e-05,102610.0,102600.0,0.43377316]
[1738136787900,9.49e-05,102610.0,102600.0,0.62877216]
[1738136788700,9.49e-05,102610.0,102600.0,0.72623329]
[1738136789090,9.49e-05,102610.0,102600.0,0.194999]
[1738136790900,9.49e-05,102610.0,102600.0,0.227099]
[1738136793604,0.17368422,102610.0,102600.0,0.227099]
[1738136794796,0.17368422,102610.0,102600.0,0.30007216]
[1738136796498,0.04840672,102610.0,102600.0,0.30007216]
[1738136797605,0.04840672,102610.0,102600.0,0.66087216]
[1738136797900,0.04840672,102610.0,102600.0,0.69889383]
[1738136799901,9.49e-05,102610.0,102600.0,0.77186699]
[1738136800106,9.49e-05,102610.0,102600.0,0.86932812]
[1738136800304,9.49e-05,102610.0,102600.0,0.79635496]
[1738136801610,9.49e-05,102610.0,102600.0,0.82845496]
[1738136802309,9.49e-05,102610.0,102600.0,0.90142812]
[1738136802509,9.49e-05,102610.0,102600.0,0.82845496]
[1738136803207,9e-07,102610.0,102600.0,0.90142812]
[1738136803509,0.04831182,102620.0,102600.0,0.90142812]
[1738136803510,0.22294154,102620.0,102600.0,0.85259663]
[1738136803810,0.22294154,102620.0,102610.0,0.62875316]
[1738136804006,0.22294154,102620.0,102610.0,0.66677483]
[1738136804505,0.22294154,102620.0,102610.0,0.84539596]
[1738136804706,5.4e-07,102620.0,102610.0,1.32042359]
[1738136804907,5.4e-07,102620.0,102610.0,1.24745043]
[1738136805310,0.00014613,102630.0,102610.0,1.12544359]
[1738136805509,0.00014613,102630.0,102620.0,0.46677316]
[1738136805806,0.00014613,102630.0,102620.0,0.50479483]
[1738136805998,0.00014613,102630.0,102620.0,0.61841353]
[1738136806203,0.00014613,102630.0,102620.0,0.71586516]
[1738136806398,0.00014613,102630.0,102620.0,0.91082616]
[1738136807917,0.00014613,102630.0,102620.0,0.97422616]
[1738136808417,0.00014613,102630.0,102620.0,1.40799932]
[1738136809402,0.00014613,102630.0,102620.0,1.36997765]
[1738136809908,0.00014613,102630.0,102620.0,1.37597765]
[1738136810412,0.00014613,102630.0,102620.0,1.37797765]
[1738136810613,0.0305,102650.0,102620.0,1.18301665]
[1738136810815,0.0305,102650.0,102640.0,0.26789616]
[1738136811707,0.0305,102650.0,102640.0,0.62869616]
[1738136813714,0.0305,102650.0,102640.0,0.66169616]
[1738136817904,0.0305,102650.0,102640.0,0.67130305]
[1738136822420,0.0305,102650.0,102640.0,0.7687262]
[1738136822613,0.00014613,102660.0,102650.0,0.194904]
[1738136822814,0.00014613,102660.0,102650.0,0.62867716]
[1738136823817,0.00114613,102660.0,102650.0,0.62867716]
[1738136824010,0.00114613,102660.0,102650.0,0.79906398]
[1738136824412,0.00114613,102660.0,102650.0,0.72609082]
[1738136824615,0.00414613,102660.0,102650.0,0.72609082]
[1738136827818,0.00414613,102660.0,102650.0,0.79906398]
[1738136828029,0.00414613,102660.0,102650.0,0.90290364]
[1738136828426,0.00414613,102660.0,102650.0,0.82993048]
[1738136829128,0.00414613,102660.0,102650.0,0.90290364]
[1738136829922,1.3e-07,102660.0,102650.0,0.90290364]
[1738136830122,0.26944542,102690.0,102650.0,0.70799964]
[1738136830323,0.26944542,102690.0,102680.0,0.26782016]
[1738136832831,0.27044542,102690.0,102680.0,0.26782016]
[1738136833228,0.27144542,102690.0,102680.0,0.26782016]
[1738136833832,0.28108048,102690.0,102680.0,0.26782016]
[1738136834225,0.25214399,102690.0,102680.0,0.26782016]
[1738136838128,0.21030893,102690.0,102680.0,0.26782016]
[1738136838534,0.21030893,102690.0,102680.0,0.29862016]
[1738136838936,0.17800893,102690.0,102680.0,0.65942016]
[1738136839239,0.14730893,102690.0,102680.0,0.65942016]
[1738136839433,0.14730893,102690.0,102680.0,0.69072016]
[1738136840343,0.14730893,102690.0,102680.0,0.82100536]
[1738136841045,0.14730893,102690.0,102680.0,0.83072313]
[1738136841234,0.14730893,102690.0,102680.0,0.90369629]
[1738136841935,0.002,102690.0,102680.0,0.90369629]
[1738136843249,0.24545506,102700.0,102690.0,0.194828]
[1738136843449,0.24545506,102700.0,102690.0,0.70157432]
[1738136843952,0.24545506,102700.0,102690.0,0.79895004]
[1738136844447,0.24845506,102700.0,102690.0,0.79895004]
[1738136845045,0.10514613,102700.0,102690.0,0.79895004]
[1738136845354,0.10514613,102700.0,102690.0,0.9033464]
[1738136846650,0.10514613,102700.0,102690.0,0.90314466]
[1738136848451,0.1456058,102720.0,102690.0,0.96997663]
[1738136848650,0.20229924,102740.0,102730.0,0.194753]
[1738136848847,0.20229924,102740.0,102730.0,0.98932616]
[1738136849045,0.20229924,102740.0,102730.0,1.17473958]
[1738136849244,0.20229924,102740.0,102730.0,1.3379153]
[1738136849652,0.20229924,102740.0,102730.0,1.3692153]
[1738136850648,0.20429924,102740.0,102730.0,1.3379153]
[1738136850844,0.2772724,102740.0,102720.0,0.62868529]
[1738136851047,0.75983324,102740.0,102720.0,0.71072529]
[1738136851250,0.0642,102730.0,102720.0,0.63775213]
[1738136851449,0.0642,102730.0,102720.0,0.71072529]
[1738136851859,0.0642,102730.0,102720.0,0.26788529]
[1738136853352,0.0961,102730.0,102720.0,0.26788529]
[1738136855563,0.18322654,102730.0,102720.0,0.26788529]
[1738136857448,0.37797954,102730.0,102720.0,0.26788529]
[1738136858563,0.37797954,102730.0,102720.0,0.19491213]
[1738136858865,0.73877954,102730.0,102720.0,0.19491213]
[1738136861367,0.651653,102730.0,102720.0,0.19491213]
[1738136861867,0.651653,102730.0,102710.0,0.08291408]
[1738136862069,0.651653,102730.0,102720.0,0.194761]
[1738136870563,0.290853,102730.0,102720.0,0.194761]
[1738136870771,0.651653,102730.0,102720.0,0.194761]
[1738136871867,0.290853,102730.0,102720.0,0.194761]
[1738136872270,0.651653,102730.0,102720.0,0.194761]
[1738136876079,0.587453,102730.0,102720.0,0.26773416]
[1738136876470,0.76214603,102730.0,102720.0,0.30063416]
[1738136879364,0.73317144,102730.0,102720.0,0.30063416]
[1738136882178,0.53841844,102730.0,102720.0,0.30063416]
[1738136882379,0.53841844,102730.0,102720.0,0.33093416]
[1738136882580,0.56739303,102730.0,102720.0,0.33093416]
[1738136884182,0.76214603,102730.0,102720.0,0.227661]
[1738136884475,0.76214603,102730.0,102720.0,0.30063416]
[1738136885574,0.587453,102730.0,102720.0,0.30063416]
[1738136886576,0.3927,102730.0,102720.0,0.30063416]
[1738136887779,0.194771,102720.0,102710.0,0.20487405]
[1738136887978,0.555571,102720.0,102710.0,0.20487405]
[1738136888173,0.588771,102720.0,102710.0,0.20487405]
[1738136889786,0.588771,102720.0,102710.0,0.20587405]
[1738136890889,0.40266403,102720.0,102710.0,0.27884721]
[1738136891783,0.76346403,102720.0,102710.0,0.27884721]
[1738136894577,0.76346403,102720.0,102710.0,0.19593313]
[1738136894785,0.86773719,102720.0,102710.0,0.19593313]
[1738136895289,0.79476403,102720.0,102710.0,0.19593313]
[1738136896077,0.80438031,102720.0,102710.0,0.19593313]
[1738136900387,0.79476403,102720.0,102710.0,0.19593313]
[1738136902596,0.79476403,102720.0,102710.0,0.26890629]
[1738136905391,0.59999303,102720.0,102710.0,0.26890629]
[1738136905591,0.56869303,102720.0,102710.0,0.26890629]
[1738136907592,0.53549303,102720.0,102710.0,0.26890629]
[1738136908691,0.17469303,102720.0,102710.0,0.26890629]
[1738136909400,0.53549303,102720.0,102710.0,0.26890629]
[1738136909694,0.73026403,102720.0,102710.0,0.19593313]
[1738136909901,0.17469303,102720.0,102710.0,0.26890629]
[1738136910096,0.53549303,102720.0,102710.0,0.26890629]
[1738136911689,0.50669768,102720.0,102710.0,0.26890629]
[1738136912596,0.50669768,102720.0,102710.0,0.19593313]
[1738136912903,0.57169768,102720.0,102710.0,0.19593313]
[1738136922708,0.53979768,102720.0,102710.0,0.19593313]
[1738136923099,0.56859303,102720.0,102710.0,0.26890629]
[1738136924710,0.56859303,102720.0,102710.0,0.24372672]
[1738136946523,0.20779303,102720.0,102710.0,0.24372672]
[1738136946723,0.56859303,102720.0,102710.0,0.24372672]
[1738136948723,0.17469303,102720.0,102710.0,0.24372672]
[1738136952431,0.14607034,102720.0,102710.0,0.24372672]
[1738136953825,0.34084134,102720.0,102710.0,0.24372672]
[1738136955421,0.70164134,102720.0,102710.0,0.24372672]
[1738136955929,0.87633437,102720.0,102710.0,0.24372672]
[1738136958322,0.87633437,102720.0,102700.0,0.00976479]
[1738136958323,0.98156337,102720.0,102700.0,0.00976479]
[1738136958523,0.61966077,102710.0,102670.0,0.40694693]
[1738136958725,0.194866,102670.0,102660.0,0.46420264]
[1738136958936,2.10345959,102670.0,102660.0,0.46420264]
[1738136959733,0.60345959,102670.0,102660.0,0.46420264]
[1738136960128,0.65125318,102670.0,102660.0,0.46420264]
[1738136960627,0.62860236,102670.0,102660.0,0.46420264]
[1738136961333,0.62860236,102670.0,102660.0,0.46520264]
[1738136961839,0.65870236,102670.0,102660.0,0.46520264]
[1738136963136,0.8039789,102670.0,102660.0,0.001]
[1738136963929,0.61622736,102670.0,102650.0,0.00014613]
[1738136964234,0.62862136,102660.0,102650.0,0.00014613]
[1738136965539,0.62862136,102660.0,102650.0,0.00114613]
[1738136966129,0.98942136,102660.0,102650.0,0.00114613]
[1738136966537,1.0763019,102660.0,102650.0,0.00114613]
[1738136969837,0.08688054,102660.0,102650.0,0.62978649]
[1738136970038,0.27565762,102670.0,102660.0,0.194885]
[1738136970226,0.27565762,102670.0,102660.0,0.259185]
[1738136970941,0.63645762,102670.0,102660.0,0.259185]
[1738136971533,0.63745762,102670.0,102660.0,0.259185]
[1738136973546,0.83232362,102670.0,102660.0,0.259185]
[1738136973932,0.62960236,102670.0,102660.0,0.259185]
[1738136974242,0.62860236,102670.0,102660.0,0.260185]
[1738136974939,0.70153872,102670.0,102660.0,0.001]
[1738136975135,0.62860236,102670.0,102660.0,0.001]
[1738136977044,0.83132362,102670.0,102660.0,0.001]
[1738136977247,0.83232362,102670.0,102650.0,0.22734713]
[1738136977545,0.43373636,102660.0,102650.0,0.22734713]
[1738136977948,0.62862136,102660.0,102650.0,0.22612577]
[1738136978332,0.62862136,102660.0,102650.0,0.22712577]
[1738136978537,0.43373636,102660.0,102650.0,0.22712577]
[1738136978748,0.62862136,102660.0,102650.0,0.22712577]
[1738136980143,0.7155019,102660.0,102650.0,0.22712577]
[1738136981456,0.64256554,102660.0,102650.0,0.22712577]
[1738136982146,0.44768054,102660.0,102650.0,0.22712577]
[1738136982952,0.56352126,102660.0,102650.0,0.22712577]
[1738136984341,0.20272126,102660.0,102650.0,0.30006213]
[1738136986755,0.20272126,102660.0,102650.0,0.30759701]
[1738136988557,0.20272126,102660.0,102650.0,0.76581067]
[1738136989554,0.14527654,102660.0,102650.0,0.5719849]
[1738136989743,0.14527654,102660.0,102650.0,0.7668889]
[1738136990955,0.14527654,102660.0,102650.0,0.8453689]
[1738136991553,0.14527654,102660.0,102650.0,0.74795524]
[1738136991757,0.14527654,102660.0,102650.0,0.67501888]
[1738136992954,0.14527654,102660.0,102650.0,0.74795524]
[1738136995762,0.14527654,102660.0,102650.0,0.66947524]
[1738136996147,0.26182869,102660.0,102650.0,0.66947524]
[1738136996351,0.26182869,102660.0,102650.0,0.7668889]
[1738136999361,0.11655215,102660.0,102650.0,0.7668889]
[1738137002964,0.11655215,102660.0,102650.0,0.23573888]
[1738137003467,0.11655215,102660.0,102650.0,0.66947524]
[1738137005466,0.11655215,102660.0,102650.0,0.59653888]
[1738137010059,0.38437351,102660.0,102650.0,0.228204]
[1738137011562,0.74517351,102660.0,102650.0,0.228204]
[1738137011772,0.74517351,102660.0,102650.0,0.0333]
[1738137012766,0.74517351,102660.0,102650.0,0.001]
[1738137014468,0.80331439,102660.0,102650.0,0.001]
[1738137018775,0.87625075,102660.0,102650.0,0.001]
[1738137018969,0.80331439,102660.0,102650.0,0.001]
[1738137019376,0.87625075,102660.0,102650.0,0.001]
[1738137019576,0.80331439,102660.0,102650.0,0.001]
[1738137024577,0.82611607,102660.0,102650.0,0.001]
[1738137026082,0.194904,102650.0,102640.0,0.25854551]
[1738137026271,0.60357302,102650.0,102640.0,0.25854551]
[1738137026571,0.60357302,102650.0,102640.0,0.30641453]
[1738137026785,0.17483916,102660.0,102650.0,0.194904]
[1738137026986,0.17483916,102660.0,102650.0,0.60357302]
[1738137027490,0.12493916,102660.0,102650.0,0.70098668]
[1738137027679,0.12493916,102660.0,102650.0,0.34018668]
[1738137028601,0.12493916,102660.0,102650.0,0.34118668]
[1738137029099,0.12493916,102660.0,102650.0,0.34418668]
[1738137029300,0.12493916,102660.0,102650.0,0.34518668]
[1738137029799,0.07503916,102660.0,102650.0,0.70598668]
[1738137030392,0.07503916,102660.0,102650.0,0.78442668]
[1738137030593,0.07503916,102660.0,102650.0,0.80945265]
[1738137031798,0.20408983,102660.0,102650.0,0.80945265]
[1738137033194,0.20408983,102660.0,102650.0,0.81761044]
[1738137035896,0.08755057,102660.0,102650.0,0.81761044]
[1738137047001,0.08755057,102660.0,102650.0,0.20806179]
[1738137047508,0.71613056,102660.0,102650.0,0.199904]
[1738137048112,0.74803056,102660.0,102650.0,0.199904]
[1738137048516,0.74803056,102660.0,102650.0,0.005]
[1738137051018,0.98110117,102660.0,102650.0,0.005]
[1738137053511,0.98948281,102660.0,102650.0,0.005]
[1738137056118,0.84380873,102660.0,102650.0,0.005]
[1738137058714,0.48300873,102660.0,102650.0,0.005]
[1738137058919,0.84380873,102660.0,102650.0,0.005]
[1738137059921,0.77091374,102660.0,102650.0,0.199904]
[1738137060120,0.2068471,102660.0,102650.0,0.27279899]
[1738137060312,0.1749471,102660.0,102650.0,0.27279899]
[1738137060512,0.1749471,102660.0,102650.0,0.30579899]
[1738137060712,0.1749471,102660.0,102650.0,0.232904]
[1738137060713,0.5357471,102660.0,102650.0,0.232904]
[1738137061124,0.80352709,102660.0,102650.0,0.199904]
[1738137063125,0.77440362,102660.0,102650.0,0.199904]
[1738137066523,0.7493693,102660.0,102650.0,0.199904]
[1738137066724,0.77849277,102660.0,102650.0,0.199904]
[1738137069537,0.82635344,102660.0,102650.0,0.199904]
[1738137069834,0.77849277,102660.0,102650.0,0.199904]
[1738137070632,0.41769277,102660.0,102650.0,0.199904]
[1738137070832,1.13929277,102660.0,102650.0,0.199904]
[1738137075729,1.18715344,102660.0,102650.0,0.005]
[1738137079134,1.21465171,102660.0,102650.0,0.005]
[1738137082026,1.21465171,102660.0,102640.0,0.2732569]
[1738137082227,0.3608,102650.0,102640.0,0.2732569]
[1738137082424,0.40866067,102650.0,102640.0,0.2732569]
[1738137083725,0.40866067,102650.0,102640.0,0.2792569]
[1738137084124,0.40866067,102650.0,102640.0,0.2812569]
[1738137085738,0.5839413,102650.0,102640.0,0.2812569]
[1738137086529,0.59245501,102650.0,102640.0,0.2812569]
[1738137087341,0.54459434,102650.0,102640.0,0.2812569]
[1738137088738,0.17528063,102650.0,102640.0,0.32911757]
[1738137088945,0.17528063,102650.0,102640.0,0.68991757]
[1738137089626,0.17528063,102650.0,102640.0,0.78734072]
[1738137090536,0.17528063,102650.0,102640.0,0.73948005]
[1738137090937,0.2231413,102650.0,102640.0,0.6420569]
[1738137091233,0.17528063,102650.0,102640.0,0.6420569]
[1738137091428,0.17528063,102650.0,102640.0,0.2812569]
[1738137092535,0.17528063,102650.0,102640.0,0.6420569]
[1738137092937,0.26286102,102650.0,102640.0,0.6420569]
[1738137093831,0.26286102,102650.0,102640.0,0.68991757]
[1738137094445,0.26286102,102650.0,102640.0,0.6420569]
[1738137095135,0.1460339,102650.0,102640.0,0.68991757]
[1738137095737,0.1460339,102650.0,102640.0,0.32911757]
[1738137096444,0.1460339,102650.0,102640.0,0.2812569]
[1738137097132,0.1460339,102650.0,102640.0,0.32911757]
[1738137097735,0.1460339,102650.0,102640.0,0.2812569]
[1738137098539,0.1460339,102650.0,102640.0,0.32911757]
[1738137098733,0.1460339,102650.0,102640.0,0.2812569]
[1738137098933,0.1460339,102650.0,102640.0,0.32911757]
[1738137099350,0.1460339,102650.0,102640.0,0.68991757]
[1738137099947,0.1460339,102650.0,102640.0,0.32911757]
[1738137100249,0.1460339,102650.0,102640.0,0.68991757]
[1738137101242,0.26283553,102650.0,102640.0,0.68991757]
[1738137103649,0.26283553,102650.0,102640.0,0.32911757]
[1738137104046,0.26283553,102650.0,102640.0,0.2812569]
[1738137104448,0.26283553,102650.0,102640.0,0.32911757]
[1738137105245,0.26283553,102650.0,102640.0,0.2812569]
[1738137105440,0.26283553,102650.0,102640.0,0.32911757]
[1738137106146,0.26283553,102650.0,102640.0,0.2812569]
[1738137107642,0.26283553,102650.0,102640.0,0.32911757]
[1738137109857,0.26283553,102650.0,102640.0,0.68991757]
[1738137110056,0.26283553,102650.0,102640.0,0.78734072]
[1738137110352,0.26283553,102650.0,102640.0,0.82482691]
[1738137112946,0.26283553,102650.0,102640.0,0.46402691]
[1738137113257,0.26283553,102650.0,102640.0,0.82482691]
[1738137113460,0.26283553,102650.0,102640.0,0.78734072]
[1738137114859,0.08758335,102650.0,102640.0,0.78734072]
[1738137120556,0.08758335,102650.0,102640.0,0.87268095]
[1738137120756,3.5e-07,102650.0,102640.0,0.97651974]
[1738137120961,0.15734566,102660.0,102650.0,0.194904]
[1738137121170,0.17528063,102670.0,102660.0,0.194885]
[1738137121366,0.17528063,102670.0,102660.0,0.76170634]
[1738137121568,0.17528063,102670.0,102660.0,0.85911051]
[1738137121762,0.17528063,102670.0,102660.0,0.89656396]
[1738137122074,0.17528063,102670.0,102660.0,0.82741051]
[1738137123766,0.00314613,102680.0,102670.0,0.194866]
[1738137123968,0.00314613,102680.0,102670.0,0.27512667]
[1738137126570,0.00314613,102680.0,102670.0,0.68678734]
[1738137128172,0.00314613,102680.0,102670.0,0.78418203]
[1738137128368,0.00314613,102680.0,102670.0,0.89318974]
[1738137128568,0.00314613,102680.0,102670.0,0.89418974]
[1738137128966,0.00314613,102680.0,102670.0,0.90303156]
[1738137132281,0.00314613,102680.0,102670.0,0.93573156]
[1738137133366,0.00314613,102680.0,102670.0,1.29653156]
[1738137133367,0.00014613,102680.0,102670.0,1.29653156]
[1738137134278,1.3e-07,102680.0,102670.0,1.34439223]
[1738137134480,1.3e-07,102680.0,102670.0,1.29653156]
[1738137134979,1.3e-07,102680.0,102670.0,1.31117156]
[1738137138279,1.3e-07,102680.0,102670.0,1.35903223]
[1738137139071,1.3e-07,102680.0,102670.0,1.31117156]
[1738137139269,1.3e-07,102680.0,102670.0,1.35903223]
[1738137140478,1.3e-07,102680.0,102670.0,1.31117156]
[1738137142383,1.3e-07,102680.0,102670.0,1.35903223]
[1738137142581,1.3e-07,102680.0,102670.0,1.31117156]
[1738137143977,1.3e-07,102680.0,102670.0,1.35903223]
[1738137144379,1.3e-07,102680.0,102670.0,1.31117156]
[1738137144981,1.3e-07,102680.0,102670.0,1.35903223]
[1738137145280,1.3e-07,102680.0,102670.0,1.31117156]
[1738137146785,1.3e-07,102680.0,102670.0,1.26760385]
[1738137152290,1.3e-07,102680.0,102670.0,1.31023431]
[1738137152783,1.3e-07,102680.0,102670.0,0.94943431]
[1738137153494,1.3e-07,102680.0,102670.0,0.90680385]
[1738137153683,1.3e-07,102680.0,102670.0,0.90636385]
[1738137156588,1.3e-07,102680.0,102670.0,0.54556385]
[1738137156785,1.3e-07,102680.0,102670.0,0.90636385]
[1738137156980,1.3e-07,102680.0,102670.0,0.54556385]
[1738137158090,1.3e-07,102680.0,102670.0,0.90636385]
[1738137158293,1.3e-07,102680.0,102670.0,0.54556385]
[1738137172725,1.3e-07,102680.0,102670.0,0.58307562]
[1738137174329,1.3e-07,102680.0,102670.0,0.54556385]
[1738137176332,1.3e-07,102680.0,102670.0,0.58308455]
[1738137178038,1.3e-07,102680.0,102670.0,0.54556385]
[1738137178228,1.3e-07,102680.0,102670.0,0.46592385]
[1738137178531,1.3e-07,102680.0,102670.0,0.54436385]
[1738137184228,1.3e-07,102680.0,102670.0,0.58190372]
[1738137184739,0.11687286,102680.0,102670.0,0.54436385]
[1738137185532,0.11687286,102680.0,102670.0,0.58190483]
[1738137190247,0.11687286,102680.0,102670.0,0.53404416]
[1738137190436,0.11687286,102680.0,102670.0,0.58190483]
[1738137190841,0.11687286,102680.0,102670.0,0.50346483]
[1738137191043,0.11687286,102680.0,102670.0,0.53404416]
[1738137191933,0.11687286,102680.0,102670.0,0.57667323]
[1738137195746,0.11687286,102680.0,102670.0,0.53404416]
[1738137197139,0.11687286,102680.0,102670.0,0.49823324]
[1738137197336,0.11687286,102680.0,102670.0,0.57667324]
[1738137200440,0.26269578,102680.0,102670.0,0.57667324]
[1738137201438,0.26269578,102680.0,102670.0,0.53404416]
[1738137203341,0.26269578,102680.0,102670.0,0.45560416]
[1738137203835,0.11687286,102680.0,102670.0,0.45560416]
[1738137204041,0.11687286,102680.0,102670.0,0.41806318]
[1738137207149,0.11687286,102680.0,102670.0,0.46592385]
[1738137207744,0.11687286,102680.0,102670.0,0.41806318]
[1738137207945,0.11687286,102680.0,102670.0,0.46592385]
[1738137209455,0.11687286,102680.0,102670.0,0.50347679]
[1738137209755,0.11687286,102680.0,102670.0,0.45561612]
[1738137210849,0.11687286,102680.0,102670.0,0.86427679]
[1738137211155,0.11687286,102680.0,102670.0,0.90690606]